bitfinex/quotes_SOLUSD_20251119
["timestamp","ask_amount","ask_price","bid_price","bid_amount"]
[1763547438685,3.27618524,139.99,139.96,0.65]
[1763547439964,3.27618524,140.0,139.96,0.65]
[1763547440378,9.78882769,140.05,139.97,3.27618524]
[1763547440379,0.72,140.05,139.97,3.27618524]
[1763547440571,3.27618524,140.02,139.97,3.27618524]
[1763547440894,3.27618524,140.02,139.98,0.68]
[1763547441269,5.85945747,140.11,139.99,3.27618524]
[1763547441471,11.36763831,140.12,139.99,3.27618524]
[1763547441472,0.72,140.06,139.99,3.27618524]
[1763547441674,0.72,140.06,140.0,3.95618524]
[1763547441675,3.27618524,140.05,140.0,3.95618524]
[1763547441999,3.27618524,140.06,140.01,3.95618524]
[1763547442203,3.27618524,140.07,140.01,3.95618524]
[1763547442500,2.42,140.08,140.02,0.68]
[1763547442501,3.27618524,140.06,140.02,0.68]
[1763547444698,3.99618524,140.06,140.02,0.68]
[1763547445407,3.27618524,140.05,140.02,0.68]
[1763547445620,3.27618524,140.05,139.95,2.91454089]
[1763547445621,3.27618524,140.03,139.99,0.68]
[1763547445795,3.27618524,140.02,139.99,0.68]
[1763547447427,3.27618524,140.01,139.99,0.68]
[1763547447598,3.27618524,140.02,139.99,0.68]
[1763547447925,3.99618524,140.02,139.99,0.68]
[1763547449016,3.27618524,140.01,139.99,0.68]
[1763547449825,3.27618524,140.03,139.99,0.68]
[1763547450735,3.27618524,140.04,139.99,3.95618524]
[1763547451229,3.99618524,140.04,140.0,0.68]
[1763547451405,11.48882769,140.06,140.0,3.95618524]
[1763547451406,3.27618524,140.05,140.0,3.95618524]
[1763547451609,3.27618524,140.05,140.01,0.68]
[1763547451819,3.99618524,140.05,140.01,0.68]
[1763547452424,3.27618524,140.04,140.01,0.68]
[1763547452823,3.99618524,140.03,139.99,0.68]
[1763547453809,3.27618524,140.03,139.99,0.68]
[1763547454830,0.72,140.05,139.99,0.68]
[1763547455035,3.27618524,140.05,139.99,3.95618524]
[1763547455211,3.27618524,140.05,140.0,0.68]
[1763547455619,0.72,140.06,140.0,0.68]
[1763547455815,3.27618524,140.05,140.0,0.68]
[1763547456932,1.7,140.07,140.0,0.68]
[1763547456933,3.99618524,140.04,140.0,0.68]
[1763547457139,0.72,140.06,140.0,0.68]
[1763547457438,3.27618524,140.04,140.0,0.68]
[1763547458037,3.27618524,140.02,139.97,18.12096]
[1763547458241,0.72,140.06,139.98,0.68]
[1763547458438,3.27618524,140.02,140.0,18.12096]
[1763547458616,3.27618524,140.03,140.0,18.12096]
[1763547458811,3.27618524,140.03,140.01,0.68]
[1763547459017,3.27618524,140.04,140.01,0.68]
[1763547459240,0.72,140.06,140.01,0.68]
[1763547459440,3.27618524,140.04,140.01,0.68]
[1763547459643,3.27618524,140.03,140.01,0.68]
[1763547460017,3.27618524,140.05,140.01,0.68]
[1763547460340,3.99618524,140.04,140.01,0.68]
[1763547460516,3.27618524,140.04,140.01,0.68]
[1763547460918,2.09485545,140.04,140.01,0.68]
[1763547462223,2.81485545,140.05,140.01,0.68]
[1763547462538,2.09485545,140.05,140.01,0.68]
[1763547463335,2.81485545,140.05,140.01,0.68]
[1763547464053,2.09485545,140.04,140.01,0.68]
[1763547464847,1.7,140.07,140.01,0.68]
[1763547465043,2.09485545,140.05,140.01,0.68]
[1763547465244,2.09485545,140.04,140.01,0.68]
[1763547465957,2.09485545,140.03,139.98,2.09485545]
[1763547466248,2.81485545,140.03,139.99,0.68]
[1763547466544,2.09485545,140.03,139.99,0.68]
[1763547467052,2.09485545,140.04,139.99,2.77485545]
[1763547467348,2.09485545,140.03,139.99,0.68]
[1763547467549,2.09485545,140.01,139.99,0.68]
[1763547467926,0.72,140.02,139.99,0.68]
[1763547467927,2.81485545,140.02,139.99,0.68]
[1763547469663,2.09485545,140.02,139.99,0.68]
[1763547470838,2.76485545,140.03,139.99,0.68]
[1763547471032,2.09485545,140.03,139.99,0.68]
[1763547471231,2.76485545,140.03,139.99,0.68]
[1763547471960,2.09485545,140.02,139.99,0.68]
[1763547474446,2.76485545,140.02,139.97,21.91581545]
[1763547474640,2.09485545,140.02,139.98,0.67]
[1763547474845,2.76485545,140.02,139.98,0.67]
[1763547475850,2.09485545,140.02,139.98,0.67]
[1763547476247,2.76485545,140.02,139.98,0.67]
[1763547476860,0.67,140.02,139.98,0.67]
[1763547477342,2.09485545,140.03,139.98,2.76485545]
[1763547477548,2.76485545,140.03,139.98,2.76485545]
[1763547477864,2.76485545,140.03,139.99,0.67]
[1763547478063,2.09485545,140.05,140.0,2.09485545]
[1763547478379,27.90978769,140.08,140.02,2.09485545]
[1763547478380,2.09485545,140.07,140.02,2.09485545]
[1763547478558,2.09485545,140.07,140.03,0.67]
[1763547479077,2.76485545,140.07,140.03,0.67]
[1763547479373,2.76485545,140.06,140.01,2.09485545]
[1763547479677,2.09485545,140.05,140.02,0.67]
[1763547480164,2.09485545,140.05,139.99,2.09485545]
[1763547480370,0.67,140.04,139.98,2.76485545]
[1763547480660,2.09485545,140.03,139.98,18.79096]
[1763547480863,2.76485545,140.03,139.99,0.67]
[1763547481063,2.09485545,140.02,139.99,0.67]
[1763547481851,2.76485545,140.02,139.99,0.67]
[1763547483567,2.09485545,140.02,139.99,0.67]
[1763547483753,0.67,140.05,139.99,0.67]
[1763547483961,0.67,140.05,139.99,2.76485545]
[1763547484147,2.09485545,140.04,139.99,2.76485545]
[1763547484355,2.09485545,140.04,140.0,0.67]
[1763547484768,2.76485545,140.04,140.0,0.67]
[1763547485260,2.09485545,140.04,140.0,0.67]
[1763547485757,2.09485545,140.06,140.0,2.76485545]
[1763547486272,2.09485545,140.06,140.01,0.67]
[1763547486477,2.76485545,140.06,140.01,0.67]
[1763547487574,9.78882769,140.11,140.01,2.76485545]
[1763547487575,2.09485545,140.07,140.01,2.76485545]
[1763547487876,2.09485545,140.07,140.02,2.76485545]
[1763547488179,0.67,140.08,140.02,2.76485545]
[1763547488353,2.76485545,140.08,140.03,2.76485545]
[1763547488771,2.76485545,140.08,140.04,0.67]
[1763547489174,1.7,140.09,140.02,20.21581545]
[1763547489175,2.76485545,140.07,140.02,20.21581545]
[1763547489489,2.76485545,140.07,140.03,0.67]
[1763547490177,2.76485545,140.06,140.03,0.67]
[1763547491362,2.09485545,140.06,140.03,0.67]
[1763547491676,2.76485545,140.07,140.03,0.67]
[1763547492578,2.09485545,140.08,140.03,2.76485545]
[1763547492956,0.67,140.08,140.04,0.67]
[1763547493161,2.09485545,140.08,140.04,0.67]
[1763547493362,2.76485545,140.08,140.04,0.67]
[1763547493669,2.09485545,140.06,140.02,0.67]
[1763547493989,2.09485545,140.06,140.02,18.79096]
[1763547494182,0.67,140.05,140.02,18.79096]
[1763547494982,2.76485545,140.06,140.03,0.67]
[1763547495186,2.09485545,140.06,140.03,0.67]
[1763547495574,2.76485545,140.06,140.03,0.67]
[1763547495774,2.09485545,140.05,140.03,0.67]
[1763547496277,2.09485545,140.05,140.02,18.79096]
[1763547496579,2.76485545,140.05,140.02,18.79096]
[1763547496778,18.12096,140.11,140.01,1.7]
[1763547496779,0.67,140.04,140.01,1.7]
[1763547496968,2.09485545,140.02,139.99,0.67]
[1763547497180,2.09485545,140.02,139.99,18.79096]
[1763547497488,2.76485545,140.02,139.99,18.79096]
[1763547498006,6.51652392,140.07,139.99,18.12096]
[1763547498174,2.09485545,140.03,140.0,0.67]
[1763547499087,1.7,140.07,139.98,0.67]
[1763547499088,2.09485545,140.01,139.98,0.67]
[1763547499499,2.09485545,140.02,139.98,0.67]
[1763547500885,2.09485545,140.03,139.98,2.76485545]
[1763547501507,2.09485545,140.03,139.99,0.68]
[1763547501682,2.75485545,140.04,139.99,0.68]
[1763547501887,0.66,140.06,139.99,20.89581545]
[1763547502115,2.09485545,140.05,140.0,3.79485545]
[1763547502426,2.09485545,140.05,140.0,4.47485545]
[1763547502623,2.75485545,140.05,140.01,0.68]
[1763547504908,2.09485545,140.04,140.01,0.68]
[1763547505501,0.71,140.05,140.01,0.68]
[1763547505695,2.09485545,140.04,140.01,0.68]
[1763547506401,36.28920949,140.08,139.98,0.72]
[1763547506402,2.09485545,140.02,139.98,0.72]
[1763547506602,2.09485545,140.01,139.98,2.42]
[1763547506791,2.09485545,140.01,139.98,1.7]
[1763547506991,2.09485545,140.01,139.99,0.72]
[1763547507202,2.80485545,140.01,139.98,2.42]
[1763547507593,2.09485545,140.01,139.99,0.72]
[1763547508723,2.80485545,140.02,139.99,0.72]
[1763547508915,2.80485545,140.02,139.98,2.42]
[1763547508916,2.09485545,140.01,139.98,2.42]
[1763547509522,2.09485545,139.99,139.95,0.2]
[1763547509702,2.09485545,139.96,139.95,0.2]
[1763547511209,2.80485545,139.96,139.95,0.2]
[1763547513605,12.59368314,139.96,139.95,0.2]
[1763547515499,18.12096,139.93,139.89,0.2]
[1763547515705,2.09485545,139.9,139.89,0.2]
[1763547516111,2.80485545,139.9,139.89,0.2]
[1763547517227,2.09485545,139.9,139.89,0.2]
[1763547517428,2.80485545,139.9,139.89,0.2]
[1763547518110,0.71,139.9,139.89,0.2]
[1763547518311,2.80485545,139.9,139.89,0.2]
[1763547518730,20.92581545,139.9,139.89,0.2]
[1763547520507,2.80485545,139.9,139.89,0.2]
[1763547520705,20.92581545,139.9,139.89,0.2]
[1763547522249,11.48882769,139.93,139.89,0.2]
[1763547522250,0.71,139.93,139.89,0.92]
[1763547522417,2.09485545,139.9,139.89,0.2]
[1763547522921,3.27950907,139.9,139.89,0.2]
[1763547523232,3.98950907,139.9,139.89,0.2]
[1763547523428,3.27950907,139.9,139.89,0.2]
[1763547523629,3.27950907,139.9,139.89,0.92]
[1763547524329,3.27950907,139.9,139.89,0.2]
[1763547524532,3.98950907,139.9,139.89,0.2]
[1763547525133,3.27950907,139.9,139.89,0.2]
[1763547525829,3.98950907,139.9,139.89,0.2]
[1763547526208,0.71,139.9,139.89,0.2]
[1763547526413,3.98950907,139.9,139.89,0.2]
[1763547527812,31.89929676,139.9,139.89,0.2]
[1763547529317,9.78882769,139.89,139.88,0.2]
[1763547529518,15.46833676,139.89,139.88,0.2]
[1763547532239,15.46833676,139.89,139.87,0.2]
[1763547532410,13.76833676,139.88,139.87,0.2]
[1763547532614,13.76833676,139.88,139.86,0.2]
[1763547532818,22.10046907,139.87,139.86,0.2]
[1763547533412,22.10046907,139.87,139.82,0.2]
[1763547533413,9.78882769,139.86,139.82,0.2]
[1763547533738,23.10046907,139.85,139.82,0.2]
[1763547533919,28.60978769,139.85,139.82,0.2]
[1763547534119,33.58929676,139.85,139.82,0.2]
[1763547536611,31.88929676,139.85,139.82,0.2]
[1763547536816,4.97950907,139.85,139.82,0.9]
[1763547537232,5.67950907,139.85,139.82,0.9]
[1763547537434,23.80046907,139.85,139.82,0.9]
[1763547537624,23.80046907,139.85,139.82,0.2]
[1763547539942,23.10046907,139.85,139.83,0.7]
[1763547540148,23.80046907,139.85,139.82,0.2]
[1763547540333,21.40046907,139.85,139.83,0.7]
[1763547540553,23.10046907,139.85,139.83,0.7]
[1763547541529,33.58929676,139.85,139.82,0.2]
[1763547545241,15.46833676,139.85,139.82,0.2]
[1763547546373,18.74784583,139.85,139.82,0.2]
[1763547546672,15.46833676,139.85,139.82,0.2]
[1763547548470,18.74784583,139.85,139.82,0.2]
[1763547550562,9.78882769,139.84,139.82,0.2]
[1763547550867,4.97950907,139.83,139.82,0.2]
[1763547551050,5.67950907,139.83,139.82,0.2]
[1763547551534,15.46833676,139.83,139.82,0.2]
[1763547551740,33.58929676,139.83,139.82,0.2]
[1763547551945,15.46833676,139.83,139.82,0.2]
[1763547552145,9.78882769,139.82,139.81,0.2]
[1763547552368,13.76833676,139.82,139.81,0.2]
[1763547552739,13.76833676,139.82,139.79,0.2]
[1763547552740,27.90978769,139.8,139.79,0.2]
[1763547552969,32.88929676,139.8,139.79,0.2]
[1763547553160,9.78882769,139.79,139.78,0.2]
[1763547553349,13.76833676,139.79,139.78,0.2]
[1763547555468,13.06833676,139.79,139.78,0.2]
[1763547555774,15.46833676,139.79,139.78,0.2]
[1763547559970,18.3387038,139.79,139.78,0.2]
[1763547563559,18.3387038,139.79,139.77,0.2]
[1763547563763,13.76833676,139.78,139.77,0.2]
[1763547564758,13.76833676,139.78,139.75,0.2]
[1763547564759,9.78882769,139.77,139.75,0.2]
[1763547564959,18.04784583,139.76,139.75,0.2]
[1763547565173,36.86880583,139.76,139.75,0.2]
[1763547565378,18.74784583,139.76,139.75,0.2]
[1763547566755,36.86880583,139.76,139.75,0.2]
[1763547566961,18.74784583,139.76,139.75,0.2]
[1763547567156,18.12096,139.72,139.69,0.72]
[1763547567362,1.7,139.71,139.64,0.2]
[1763547567673,4.97950907,139.7,139.68,0.72]
[1763547568066,1.7,139.7,139.68,0.72]
[1763547568265,4.97950907,139.7,139.68,0.72]
[1763547569373,3.27950907,139.69,139.68,0.72]
[1763547570078,4.97950907,139.7,139.68,0.72]
[1763547570887,1.7,139.69,139.68,0.72]
[1763547572080,4.97950907,139.69,139.68,0.72]
[1763547572477,4.97950907,139.69,139.67,0.72]
[1763547572669,1.7,139.69,139.67,0.72]
[1763547572871,3.27950907,139.68,139.67,0.72]
[1763547573265,3.97950907,139.68,139.65,0.72]
[1763547573561,3.97950907,139.68,139.64,0.2]
[1763547573562,3.27950907,139.66,139.64,0.2]
[1763547573784,4.97950907,139.65,139.64,0.2]
[1763547573984,5.67950907,139.65,139.64,0.2]
[1763547574289,15.46833676,139.65,139.64,0.2]
[1763547575985,13.06833676,139.65,139.64,0.2]
[1763547576182,14.76833676,139.65,139.64,0.2]
[1763547576375,15.46833676,139.65,139.64,0.2]
[1763547577968,23.10046907,139.65,139.64,0.92]
[1763547578198,23.10046907,139.65,139.64,0.2]
[1763547578666,10.48882769,139.67,139.64,0.92]
[1763547578667,9.78882769,139.67,139.64,0.92]
[1763547578975,1.7,139.66,139.64,0.2]
[1763547579170,4.97950907,139.65,139.64,0.2]
[1763547579389,4.97950907,139.65,139.64,0.92]
[1763547580095,23.80046907,139.65,139.64,0.2]
[1763547580787,33.58929676,139.65,139.64,0.2]
[1763547581585,21.40046907,139.65,139.64,0.92]
[1763547581772,23.10046907,139.65,139.64,0.92]
[1763547582169,1.7,139.65,139.64,0.92]
[1763547582692,4.97950907,139.65,139.64,0.92]
[1763547583592,3.27950907,139.65,139.64,0.92]
[1763547583897,4.97950907,139.65,139.64,0.2]
[1763547584069,4.97950907,139.65,139.64,0.92]
[1763547584070,1.7,139.65,139.64,0.92]
[1763547586206,9.78882769,139.71,139.64,3.02658303]
[1763547586370,3.80658303,139.7,139.65,0.72]
[1763547586569,3.80658303,139.7,139.65,2.82658303]
[1763547586570,2.10658303,139.7,139.65,2.82658303]
[1763547586787,1.7,139.69,139.66,2.82658303]
[1763547587109,1.7,139.69,139.66,0.72]
[1763547587277,1.7,139.69,139.67,0.72]
[1763547587483,1.7,139.69,139.67,2.82658303]
[1763547587974,1.7,139.69,139.68,0.72]
[1763547588820,9.78882769,139.75,139.68,2.82658303]
[1763547589099,3.80658303,139.74,139.69,2.10658303]
[1763547589405,3.80658303,139.74,139.69,2.82658303]
[1763547589599,21.92754303,139.74,139.7,0.7]
[1763547589801,19.82096,139.74,139.7,0.7]
[1763547590401,1.7,139.74,139.7,0.7]
[1763547590789,18.12096,139.75,139.71,2.10658303]
[1763547591102,1.7,139.73,139.7,0.7]
[1763547591401,3.80658303,139.73,139.65,18.12096]
[1763547591586,3.80658303,139.73,139.7,0.7]
[1763547592186,1.7,139.73,139.7,0.7]
[1763547592577,1.7,139.72,139.7,2.80658303]
[1763547593106,1.7,139.72,139.71,0.7]
[1763547593400,1.7,139.72,139.67,2.10658303]
[1763547593574,1.7,139.72,139.68,2.10658303]
[1763547594003,1.7,139.72,139.69,0.7]
[1763547596006,3.80658303,139.72,139.69,0.7]
[1763547596299,1.7,139.72,139.69,0.7]
[1763547596493,3.80658303,139.72,139.69,0.7]
[1763547596798,1.7,139.72,139.69,0.7]
[1763547597609,3.80658303,139.72,139.69,0.7]
[1763547598590,1.7,139.72,139.69,0.7]
[1763547600394,2.10658303,139.71,139.66,2.10658303]
[1763547600592,2.10658303,139.71,139.66,2.80658303]
[1763547600817,2.10658303,139.71,139.67,0.7]
[1763547601421,3.80658303,139.72,139.67,2.80658303]
[1763547601709,1.7,139.72,139.68,2.10658303]
[1763547601894,1.7,139.72,139.68,2.80658303]
[1763547602102,1.7,139.72,139.69,0.7]
[1763547603524,18.12096,139.75,139.69,2.80658303]
[1763547603687,1.7,139.74,139.7,2.10658303]
[1763547603988,1.7,139.74,139.7,2.80658303]
[1763547604187,1.7,139.74,139.71,0.7]
[1763547606287,18.12096,139.71,139.66,0.7]
[1763547606494,2.10658303,139.69,139.66,0.7]
[1763547606688,3.80658303,139.7,139.66,0.7]
[1763547606887,1.7,139.7,139.66,0.7]
[1763547607410,3.80658303,139.7,139.66,0.7]
[1763547608516,1.7,139.7,139.66,0.7]
[1763547608704,3.80658303,139.7,139.66,0.7]
[1763547611212,2.10658303,139.69,139.66,0.7]
[1763547611718,3.80658303,139.7,139.66,0.7]
[1763547612023,2.10658303,139.69,139.66,0.7]
[1763547613502,2.10658303,139.67,139.64,0.9]
[1763547613702,1.7,139.66,139.64,0.9]
[1763547614422,1.7,139.66,139.65,0.7]
[1763547615807,18.12096,139.71,139.65,0.7]
[1763547616124,3.80658303,139.7,139.65,0.7]
[1763547616721,1.7,139.69,139.65,2.80658303]
[1763547616927,1.7,139.69,139.65,0.7]
[1763547617113,1.7,139.69,139.66,0.7]
[1763547617510,2.87139729,139.72,139.66,2.80658303]
[1763547617710,1.7,139.71,139.67,2.10658303]
[1763547617915,1.7,139.71,139.67,2.80658303]
[1763547618113,1.7,139.7,139.68,0.7]
[1763547618725,1.7,139.7,139.68,2.80658303]
[1763547618924,27.64046543,139.79,139.69,2.10658303]
[1763547619125,1.7,139.75,139.7,2.10658303]
[1763547619317,1.7,139.75,139.71,0.7]
[1763547619721,3.80658303,139.75,139.71,0.7]
[1763547620028,2.10658303,139.74,139.71,0.7]
[1763547620407,20.22754303,139.74,139.71,0.7]
[1763547621930,18.12096,139.74,139.71,0.7]
[1763547622516,20.22754303,139.74,139.71,0.7]
[1763547622828,20.22754303,139.74,139.65,9.78882769]
[1763547623145,2.10658303,139.72,139.68,0.66]
[1763547623335,2.10658303,139.72,139.68,18.78096]
[1763547623336,1.7,139.71,139.68,18.78096]
[1763547623525,3.80658303,139.71,139.68,18.78096]
[1763547623836,3.80658303,139.71,139.69,0.66]
[1763547624413,1.7,139.71,139.69,0.66]
[1763547626241,2.10658303,139.74,139.69,2.76658303]
[1763547626444,1.7,139.74,139.71,2.10658303]
[1763547626618,1.7,139.74,139.7,2.78658303]
[1763547627024,1.7,139.74,139.71,0.68]
[1763547628621,5.96022031,139.81,139.73,2.10658303]
[1763547628823,0.66,139.82,139.76,2.10658303]
[1763547629040,1.7,139.81,139.77,0.68]
[1763547629346,18.12096,139.8,139.77,0.68]
[1763547629847,4.46658303,139.81,139.77,0.68]
[1763547630151,20.22754303,139.8,139.77,0.68]
[1763547630331,2.10658303,139.79,139.75,0.68]
[1763547630529,2.10658303,139.79,139.72,20.22754303]
[1763547630530,2.10658303,139.77,139.72,20.22754303]
[1763547630850,2.10658303,139.77,139.73,0.68]
[1763547630851,5.47723858,139.76,139.73,0.68]
[1763547631069,6.13723858,139.77,139.73,0.68]
[1763547631919,5.47723858,139.76,139.73,0.68]
[1763547632154,5.47723858,139.77,139.73,0.68]
[1763547633235,1.7,139.78,139.73,6.15723858]
[1763547633431,5.47723858,139.78,139.73,6.15723858]
[1763547633632,1.7,139.77,139.74,0.68]
[1763547634035,7.17723858,139.77,139.74,0.68]
[1763547634542,5.47723858,139.77,139.74,0.68]
[1763547634748,7.17723858,139.77,139.74,0.68]
[1763547635045,5.47723858,139.77,139.74,0.68]
[1763547635358,1.7,139.76,139.74,0.68]
[1763547638155,1.7,139.76,139.68,33.38702627]
[1763547638344,2.36,139.76,139.72,0.68]
[1763547639251,0.66,139.75,139.72,0.68]
[1763547639642,1.7,139.76,139.72,0.68]
[1763547639830,2.36,139.76,139.72,0.68]
[1763547640033,7.83723858,139.76,139.72,0.68]
[1763547640235,7.17723858,139.76,139.72,0.68]
[1763547640452,1.7,139.75,139.72,6.15723858]
[1763547640831,1.7,139.75,139.73,0.68]
[1763547642552,23.59819858,139.77,139.73,0.68]
[1763547642752,5.47723858,139.74,139.68,18.12096]
[1763547642962,5.47723858,139.74,139.69,0.68]
[1763547643346,6.13723858,139.74,139.69,0.68]
[1763547643543,5.47723858,139.73,139.69,0.68]
[1763547644140,5.47723858,139.73,139.63,1.7]
[1763547644141,5.47723858,139.71,139.67,0.68]
[1763547644643,5.47723858,139.7,139.67,0.68]
[1763547644953,2.36,139.72,139.67,0.68]
[1763547645135,5.47723858,139.71,139.67,0.68]
[1763547646865,9.82274221,139.71,139.67,0.68]
[1763547647559,0.66,139.7,139.67,0.68]
[1763547647731,1.7,139.69,139.67,0.68]
[1763547649058,1.7,139.69,139.65,9.16274221]
[1763547649245,1.7,139.69,139.66,0.68]
[1763547650256,9.82274221,139.68,139.64,0.87]
[1763547650760,3.95125938,139.67,139.64,0.2]
[1763547650983,1.7,139.66,139.64,0.2]
[1763547651274,2.36,139.66,139.64,0.2]
[1763547651963,1.7,139.66,139.64,0.2]
[1763547655159,0.66,139.65,139.64,0.2]
[1763547655556,3.95125938,139.65,139.64,0.2]
[1763547656859,0.66,139.65,139.64,0.2]
[1763547657040,3.95125938,139.65,139.64,0.2]
[1763547661444,13.74008707,139.65,139.64,0.2]
[1763547662550,18.12096,139.62,139.57,0.67]
[1763547662769,3.29125938,139.59,139.57,0.67]
[1763547662967,1.7,139.58,139.57,0.67]
[1763547663772,1.7,139.58,139.55,0.67]
[1763547665690,3.95125938,139.57,139.54,0.2]
[1763547665858,1.7,139.58,139.56,0.67]
[1763547666168,3.95125938,139.6,139.56,0.67]
[1763547666373,1.7,139.59,139.56,0.67]
[1763547668683,1.7,139.59,139.56,3.96125938]
[1763547668980,3.95125938,139.61,139.56,3.96125938]
[1763547669158,1.7,139.6,139.57,0.67]
[1763547669663,2.36,139.6,139.57,0.67]
[1763547670181,5.65125938,139.6,139.57,0.67]
[1763547671178,2.36,139.6,139.57,0.67]
[1763547673190,5.65125938,139.6,139.57,0.67]
[1763547673394,3.29125938,139.59,139.57,0.67]
[1763547673695,3.29125938,139.59,139.56,0.67]
[1763547674193,3.29125938,139.57,139.54,0.2]
[1763547674366,0.66,139.58,139.54,0.2]
[1763547674367,4.99125938,139.56,139.54,0.2]
[1763547674567,3.29125938,139.55,139.54,0.2]
[1763547675799,3.95125938,139.55,139.54,0.2]
[1763547676200,0.66,139.55,139.54,0.2]
[1763547676372,3.95125938,139.55,139.54,0.2]
[1763547679390,4.99125938,139.55,139.54,0.2]
[1763547679971,5.66125938,139.55,139.54,0.2]
[1763547680282,9.16786434,139.6,139.54,0.86]
[1763547680283,1.7,139.56,139.54,0.86]
[1763547680483,1.7,139.56,139.55,0.66]
[1763547681088,18.12096,139.58,139.55,0.66]
[1763547681282,1.7,139.58,139.55,3.95125938]
[1763547681678,1.7,139.58,139.56,0.66]
[1763547683491,1.7,139.58,139.56,3.95125938]
[1763547683692,1.7,139.59,139.56,3.95125938]
[1763547683892,1.7,139.59,139.57,0.66]
[1763547684395,5.29125937,139.69,139.57,0.66]
[1763547684601,3.29125938,139.63,139.57,3.95125938]
[1763547684797,1.7,139.62,139.58,0.69]
[1763547686076,1.7,139.62,139.58,3.98125938]
[1763547686381,21.41221938,139.64,139.58,3.98125938]
[1763547686589,1.7,139.62,139.59,0.69]
[1763547688903,1.7,139.62,139.59,3.98125938]
[1763547689099,3.29125938,139.65,139.6,3.29125938]
[1763547689304,1.7,139.64,139.6,3.98125938]
[1763547689489,1.7,139.64,139.61,3.98125938]
[1763547689694,1.7,139.64,139.61,0.69]
[1763547689892,1.7,139.64,139.62,0.69]
[1763547690077,1.7,139.64,139.57,18.12096]
[1763547690283,1.7,139.64,139.61,0.69]
[1763547690714,1.7,139.64,139.61,3.98125938]
[1763547690893,1.7,139.64,139.57,18.12096]
[1763547690894,3.29125938,139.68,139.63,3.29125938]
[1763547691093,1.7,139.67,139.63,3.29125938]
[1763547691296,1.7,139.67,139.64,0.69]
[1763547691807,5.69125938,139.67,139.62,0.69]
[1763547692012,5.69125938,139.67,139.63,0.69]
[1763547692827,4.99125938,139.67,139.63,0.69]
[1763547694321,4.99125938,139.67,139.63,3.98125938]
[1763547694322,1.7,139.67,139.63,3.98125938]
[1763547694810,1.7,139.67,139.64,0.69]
[1763547694990,1.7,139.68,139.64,0.69]
[1763547695191,1.7,139.68,139.64,3.98125938]
[1763547695711,1.7,139.68,139.65,0.69]
[1763547695910,3.99125938,139.67,139.62,0.69]
[1763547697516,0.7,139.67,139.62,3.98125938]
[1763547697814,3.99125938,139.67,139.63,0.69]
[1763547698707,3.99125938,139.66,139.63,0.69]
[1763547699013,0.7,139.66,139.63,0.69]
[1763547699788,4.99125938,139.68,139.63,0.69]
[1763547700018,5.69125938,139.68,139.63,3.98125938]
[1763547700204,5.69125938,139.68,139.63,0.69]
[1763547700389,4.99125938,139.68,139.64,0.69]
[1763547700805,5.69125938,139.68,139.64,0.69]
[1763547702024,4.99125938,139.68,139.64,0.69]
[1763547702604,5.69125938,139.68,139.64,0.69]
[1763547702933,3.99125938,139.68,139.64,0.69]
[1763547703103,1.7,139.67,139.64,0.69]
[1763547704231,3.99125938,139.66,139.62,0.69]
[1763547705623,4.99125938,139.67,139.62,0.69]
[1763547705799,4.99125938,139.67,139.62,3.98125938]
[1763547705999,5.69125938,139.67,139.62,3.98125938]